[Event "CCT Airthings Masters Play-In 2023"]
[Site "Online"]
[Date "2023.02.03"]
[Round "4"]
[White "Iskusnyh, Sergei"]
[Black "Arseniy_Nesterov"]
[Result "0-1"]
[ECO "E04"]
[WhiteElo "2443"]
[BlackElo "2519"]
[Annotator "TA"]
[PlyCount "58"]
[EventDate "2023.02.03"]
[EventType "swiss"]
[EventCountry "NET"]
[SourceTitle "playchess.com"]
[Source "ChessBase"]
[SourceQuality "1"]
[TimeControl "600+2"]

{[%evp 13,58,0,0,7,11,-23,13,9,0,0,22,19,10,10,12,2,0,-18,0,-14,0,0,0,0,40,32,31,41,32,38,38,50,89,89,144,91,181,100,107,75,149,135,153,149,154,162,306]} 1. d4 {[%emt 0:00:03]} d5 {[%emt 0:01:06]} 2. c4 {[%emt 0:00:02]} e6 {[%emt 0:00:01]} 3. Nf3 {[%emt 0:00:02]} Nf6 {[%emt 0:00:01]} 4. g3 {[%emt 0:00:01]} dxc4 {[%emt 0:00:02]} 5. Bg2 {[%emt 0:00:03]} Nc6 {[%emt 0:00:01]} 6. O-O {[%emt 0:00:13]} Rb8 {[%emt 0:00:02]} 7. e3 {[%emt 0:00:11]} b5 {[%emt 0:00:06] 7...Be7 gains popularity.} 8. Qe2 {[%emt 0:00:06] E04: Open Catalan: 5 Nf3.} Bd6 {[%emt 0:00:34]} 9. b3 {[%emt 0:00:27]} cxb3 {[%emt 0:00:05]} 10. axb3 {[%emt 0:00:03] The position is equal.} O-O {[%emt 0:00:18]} 11. Bb2 {[%emt 0:02:28][%cal Bc1b2,Bb2c3,Bc3e1][%mdl 32]} a6 {[%emt 0:00:22]} 12. Ne5 {[%emt 0:01:03][%mdl 1024] White has compensation.} Nb4 {[%emt 0:00:59] [#]} 13. Bc3 $146 {[%emt 0:01:19] [#] Bxb4 is the strong threat.} ({Predecessor:} 13. Ba3 Rb6 14. Rc1 a5 15. Bxb4 Bxb4 16. Nc6 Qd6 17. Nxb4 axb4 18. Qc2 e5 19. dxe5 Qxe5 {½-½ Greenfeld,A (2495)-Kryvoruchko,Y (2697) EU-Cup 34th Porto Carras 2018 (7.6)}) 13... Rb6 {[%emt 0:00:27]} 14. Rd1 {[%emt 0:00:39]} Qe7 {[%emt 0:00:46]} 15. Rc1 {[%emt 0:02:55]} Nfd5 {[%emt 0:00:53]} 16. Be1 {[%emt 0:00:09] And now e4 would win.} Bxe5 {[%emt 0:00:08]} 17. dxe5 {[%emt 0:00:01] [#] e4 would be deadly.} Rc6 {[%emt 0:00:09]} 18. Nc3 {[%emt 0:00:30]} Bb7 {[%emt 0:02:43]} 19. Nxd5 {[%emt 0:00:05]} exd5 {[%emt 0:00:07]} 20. Bxb4 {[%emt 0:00:11]} Qxb4 {[%emt 0:00:01]} 21. Rxc6 {[%emt 0:00:02]} (21. Bxd5 $2 {perishes.} Rxc1+ 22. Rxc1 Bxd5 $19) 21... Bxc6 {[%emt 0:00:02]} 22. Rxa6 {[%emt 0:00:01]} Bb7 {[%emt 0:00:12]} 23. Ra7 {[%emt 0:00:01]} Rb8 {[%emt 0:00:34]} (23... Bc8 $142) 24. Qd1 {[%emt 0:00:01]} (24. Qa2 $142 {[%cal Oa7b7] Hoping for Rxb7!} Bc8 25. Bxd5 (25. Rxc7 Qe1+ 26. Bf1 Bh3 $11)) 24... Qe7 {[%emt 0:00:44]} (24... Qc5 $16 25. Qd4 Qc6) 25. Qa1 {[%emt 0:00:03]} (25. Bxd5 $18 Bxd5 26. Qxd5) 25... Bc6 {[%emt 0:00:21]} 26. Qc3 {[%emt 0:00:07]} Bb7 {[%emt 0:00:06]} (26... Ra8 $142 27. Rxa8+ Bxa8) 27. b4 {[%emt 0:00:04] White is clearly better.} h6 {[%emt 0:00:02]} 28. h4 {[%emt 0:00:02]} Qd7 {[%emt 0:00:02]} 29. Qc5 {[%emt 0:00:02]} c6 {[%emt 0:00:01][%mdl 32768] Weighted Error Value: White=0.15 (very precise) /Black=0.21 (precise) . Loss on time!?} (29... Bc6 {is a better defense.} 30. Bh3 Qxh3) 0-1

[Event "CCT Airthings Masters Play-In 2023"]
[Site "Online"]
[Date "2023.02.03"]
[Round "4"]
[White "Azeryahu"]
[Black "DeviatkinAndrey"]
[Result "1-0"]
[ECO "B12"]
[WhiteElo "2406"]
[BlackElo "2098"]
[Annotator "TA"]
[PlyCount "271"]
[EventDate "2023.02.03"]
[EventType "swiss"]
[EventCountry "NET"]
[SourceTitle "playchess.com"]
[Source "ChessBase"]
[SourceQuality "1"]
[TimeControl "600+2"]

{[%evp 52,271,0,0,0,0,0,-5,0,0,0,0,0,-6,0,0,0,0,0,0,0,0,0,-10,0,0,0,0,0,0,0,-10,0,0,0,-10,0,0,-12,0,0,-158,-11,-70,-78,-59,-7,-7,-7,-7,-5,-154,-135,-491,-131,-137,-79,-132,-7,-22,0,-447,-5,-101,-91,-117,-97,-98,-103,-108,0,-7,0,-5,0,-138,-5,-6,0,-110,-6,-6,0,0,0,0,0,0,0,0,52,52,50,64,54,51,41,20,26,0,0,-3,8,8,8,8,702,25,25,25,26,25,46,25,25,25,49,0,11,11,11,11,11,10,12,12,12,11,11,11,11,10,10,10,10,10,11,11,33,12,33,33,33,33,33,33,33,19,33,33,33,33,33,33,33,33,33,33,49,33,33,33,33,33,33,33,33,33,33,28,19,19,49,49,49,49,49,49,49,49,49,49,75,74,75,75,75,75,75,75,29966,75,75,75,75,49,49,49,49,49,49,35,35,35,35,20,12,8,8,8,8,8,11,11,11,12,12,12,27,12,60,62]} 1. e4 {[%emt 0:00:04]} c6 {[%emt 0:00:25]} 2. d4 {[%emt 0:00:04]} d5 {[%emt 0:00:01]} 3. e5 {[%emt 0:00:00]} Bf5 {[%emt 0:00:02]} 4. Nd2 {[%emt 0:00:01]} e6 {[%emt 0:00:02]} 5. Nb3 {[%emt 0:00:02]} Nd7 {[%emt 0:00:03]} 6. Nf3 {[%emt 0:00:04]} a6 {[%emt 0:00:05]} 7. Be2 {[%emt 0:00:18]} Ne7 {[%emt 0:01:04]} 8. Nh4 {[%emt 0:00:12]} Be4 {[%emt 0:00:09]} 9. O-O {[%emt 0:00:21]} c5 {[%emt 0:00:18]} 10. f3 {[%emt 0:01:06]} Bg6 {[%emt 0:00:35]} 11. c3 {[%emt 0:00:04]} Nc6 {[%emt 0:01:19]} 12. Nxg6 {[%emt 0:00:05]} hxg6 {[%emt 0:01:16]} 13. g3 {[%emt 0:00:02]} Rc8 {[%emt 0:01:32]} 14. Be3 {[%emt 0:00:25]} Qb6 {[%emt 0:00:33]} 15. Qd2 {[%emt 0:01:00]} Na5 {[%emt 0:00:59]} 16. Nxa5 {[%emt 0:01:20]} Qxa5 {[%emt 0:00:07]} 17. Bd3 {[%emt 0:00:00]} cxd4 {[%emt 0:00:06]} 18. cxd4 {[%emt 0:00:02]} Qxd2 {[%emt 0:00:01]} 19. Bxd2 {[%emt 0:00:00]} Nb8 {[%emt 0:00:07]} 20. Rfc1 {[%emt 0:00:30]} Rxc1+ {[%emt 0:00:46]} 21. Rxc1 {[%emt 0:00:02]} Kd7 {[%emt 0:00:00]} 22. h4 {[%emt 0:02:17]} Nc6 {[%emt 0:00:02]} 23. Be3 {[%emt 0:00:08]} Bb4 {[%emt 0:00:12]} 24. Kf2 {[%emt 0:00:07]} Ba5 {[%emt 0:00:02]} 25. Bb1 {[%emt 0:00:01]} b5 {[%emt 0:00:06]} 26. f4 {[%emt 0:00:08]} Bb6 {[%emt 0:00:01]} 27. Rd1 {[%emt 0:00:01]} Ne7 {[%emt 0:00:01]} 28. Rc1 {[%emt 0:00:18]} Nc6 {[%emt 0:00:05]} 29. Rd1 {[%emt 0:00:01]} Rc8 {[%emt 0:00:02]} 30. g4 {[%emt 0:00:27]} Na5 {[%emt 0:00:05]} 31. Kg3 {[%emt 0:00:11]} Nc6 {[%emt 0:00:09]} 32. Kf3 {[%emt 0:00:05]} Rh8 {[%emt 0:00:03]} 33. Bf2 {[%emt 0:00:04]} Ne7 {[%emt 0:00:06]} 34. Rc1 {[%emt 0:00:01]} Nc6 {[%emt 0:00:01]} 35. Rd1 {[%emt 0:00:01]} Ne7 {[%emt 0:00:01]} 36. Bd3 {[%emt 0:00:01]} Nc6 {[%emt 0:00:02]} 37. Be2 {[%emt 0:00:02]} Na5 {[%emt 0:00:07]} 38. b3 {[%emt 0:00:13]} Rc8 {[%emt 0:00:01]} 39. Bd3 $1 {[%emt 0:00:10]} Nc6 {[%emt 0:00:03]} 40. Bb1 {[%emt 0:00:01]} Ne7 {[%emt 0:00:04]} 41. Be1 {[%emt 0:00:01]} Nc6 {[%emt 0:00:05]} 42. Bf2 {[%emt 0:00:00]} Ne7 {[%emt 0:00:10]} 43. Be1 {[%emt 0:00:45]} Bxd4 {[%emt 0:00:01]} 44. Rxd4 {[%emt 0:00:15]} Rc1 {[%emt 0:00:02]} 45. Bxg6 $1 {[%emt 0:00:01]} fxg6 {[%emt 0:00:11]} 46. Bd2 $2 {[%emt 0:00:19]} (46. Ke2 $11) 46... Rc2 {[%emt 0:00:01]} (46... Ra1 $17 47. a4 Nc6) 47. a4 {[%emt 0:00:02]} (47. a3 $1 $11) 47... Nc6 {[%emt 0:00:03]} 48. Rd3 {[%emt 0:00:01]} b4 {[%emt 0:00:06]} ({Better is} 48... bxa4 $15 49. bxa4 Ra2) 49. Be3 $11 {[%emt 0:00:14]} a5 {[%emt 0:00:09]} 50. Bd2 {[%emt 0:00:00]} Rb2 {[%emt 0:00:02]} 51. Ke3 {[%emt 0:00:02]} (51. Be3 $11) 51... Rb1 {[%emt 0:00:02]} 52. Kf3 $2 {[%emt 0:00:01][%mdl 8192]} (52. Kf2 $17 {is more resistant.}) 52... Rf1+ $2 {[%emt 0:00:02]} (52... Rxb3 $1 $19 {has better winning chances.} 53. Ke2 Rb1) 53. Kg2 $17 {[%emt 0:00:02]} Rd1 {[%emt 0:00:01]} 54. Kf3 {[%emt 0:00:00]} (54. Kf2 $142) 54... Rh1 {[%emt 0:00:06]} (54... Kc8 $17 {next ...Rh1 is good for Black.} 55. Kg2 Kc7) 55. Kg3 $11 {[%emt 0:00:03]} Rb1 $2 {[%emt 0:00:04][%mdl 8192]} (55... Nd8 $11) 56. Kf3 $19 {[%emt 0:00:01]} Ne7 $2 {[%emt 0:00:02]} (56... Rxb3 $1 $19 57. Ke2 Rb1) 57. Ke2 {[%emt 0:00:03]} (57. Be3 $11 {remains equal.}) 57... Rg1 $1 $17 {[%emt 0:00:03]} 58. Kf3 {[%emt 0:00:02]} Rh1 $1 {[%emt 0:00:01]} 59. Kg3 {[%emt 0:00:01]} Rd1 {[%emt 0:00:01]} 60. Kf3 {[%emt 0:00:00]} Rb1 {[%emt 0:00:03]} (60... Kc8 $17) 61. Kf2 {[%emt 0:00:04]} Nc6 {[%emt 0:00:01]} 62. Kg2 {[%emt 0:00:05]} Rd1 {[%emt 0:00:01]} 63. Kf2 {[%emt 0:00:01]} (63. Kf3 $1 $11 {was the only way to keep the balance.}) 63... Nd8 {[%emt 0:00:01]} (63... Kc8 $17 64. Kg2 Kd7) 64. Ke2 $11 {[%emt 0:00:02]} Rg1 {[%emt 0:00:01]} 65. Kf3 {[%emt 0:00:02] [#]} (65. Be1 $1 $11) 65... Rf1+ {[%emt 0:00:01]} ({Black should try} 65... Rh1 $1 $17 66. Be3 Rxh4) 66. Ke2 $11 {[%emt 0:00:01]} Rh1 {[%emt 0:00:01]} 67. Be1 {[%emt 0:00:01]} Nb7 {[%emt 0:00:02]} 68. Bf2 {[%emt 0:00:00]} Rb1 {[%emt 0:00:02]} 69. f5 {[%emt 0:00:05]} gxf5 {[%emt 0:00:01]} 70. gxf5 {[%emt 0:00:02]} Ke7 {[%emt 0:00:04]} (70... exf5 $11 71. Rg3 (71. Rxd5+ Ke6 $11) 71... Rb2+ 72. Kf1 Ke6) 71. Rg3 $14 {[%emt 0:00:05]} Kf7 $1 {[%emt 0:00:03]} 72. fxe6+ $1 {[%emt 0:00:03]} Kxe6 {[%emt 0:00:01]} 73. Rxg7 {[%emt 0:00:01]} Nd8 {[%emt 0:00:01]} 74. h5 {[%emt 0:00:03]} (74. Bb6 $5 {[%cal Rb6d8]} Nf7 75. Rg3 $14 (75. Bxa5 Rxb3 76. Rg6+ Kxe5 $14)) 74... Rxb3 {[%emt 0:00:02]} 75. h6 {[%emt 0:00:01]} (75. Bg3 $5 {[%cal Rh5h6]} Nc6 76. h6 Nd4+ 77. Kd2 Nf3+ 78. Kc1 Rc3+ 79. Kd1 $14) 75... Rh3 {[%emt 0:00:01]} (75... Kxe5 $2 76. Bg3+ Ke6 77. h7 $18) 76. h7 {[%emt 0:00:00]} Nf7 {[%emt 0:00:02]} (76... Kf5 {simplifies} 77. Rg8 Nf7 78. Ra8 Kxe5 79. Rxa5 Rxh7 80. Rb5 Rh2) 77. Bd4 {[%emt 0:00:02]} b3 {[%emt 0:00:02]} 78. Rg6+ {[%emt 0:00:01]} Ke7 $2 {[%emt 0:00:02][%mdl 8192]} (78... Kf5 $11 79. e6 (79. Rf6+ Ke4 $11) 79... Kxg6 80. exf7 Kxf7) 79. e6 $2 {[%emt 0:00:01]} ({White has to play} 79. Bc5+ $18 Kd8 80. e6 Rh2+ 81. Ke3 Rxh7 82. Rg8+ (82. exf7 Rxf7 83. Bd4 Rb7 $16) 82... Kc7 83. e7 (83. exf7 Rxf7 84. Bd4 Rh7 $16) 83... Rh3+ 84. Kd4 Rh4+ 85. Kxd5 Rh5+ 86. Kd4 Rh4+ 87. Kc3) 79... Rxh7 $11 {[%emt 0:00:03]} ({Not} 79... Rh2+ 80. Ke3 Rxh7 81. exf7 Kxf7 82. Rg4 $16) 80. exf7 {[%emt 0:00:02]} Kxf7 {[%emt 0:00:02]} 81. Rb6 {[%emt 0:00:04]} Rh4 {[%emt 0:00:01]} 82. Kd3 {[%emt 0:00:02]} Rh3+ {[%emt 0:00:02]} 83. Kd2 {[%emt 0:00:01]} Rh4 {[%emt 0:00:03]} 84. Kd3 {[%emt 0:00:05]} Rh3+ {[%emt 0:00:01]} 85. Be3 {[%emt 0:00:00]} d4 {[%emt 0:00:03]} 86. Kxd4 {[%emt 0:00:01]} Rh4+ {[%emt 0:00:01]} 87. Ke5 {[%emt 0:00:01]} Rxa4 {[%emt 0:00:02]} 88. Rxb3 {[%emt 0:00:05]} Rb4 {[%emt 0:00:01]} 89. Ra3 {[%emt 0:00:01]} Rb5+ {[%emt 0:00:02]} 90. Kd4 {[%emt 0:00:02]} Ke6 {[%emt 0:00:02]} 91. Kc4 {[%emt 0:00:01]} Rb4+ {[%emt 0:00:01]} 92. Kc5 {[%emt 0:00:01]} Re4 {[%emt 0:00:01]} 93. Bd4 {[%emt 0:00:00]} Rg4 {[%emt 0:00:02]} 94. Re3+ {[%emt 0:00:03]} Kd7 {[%emt 0:00:02]} 95. Kd5 {[%emt 0:00:02]} Rg5+ {[%emt 0:00:00]} 96. Be5 {[%emt 0:00:01]} Rg1 {[%emt 0:00:01]} 97. Rh3 {[%emt 0:00:03]} Rd1+ {[%emt 0:00:01]} 98. Bd4 {[%emt 0:00:01]} Re1 {[%emt 0:00:03]} 99. Rh6 {[%emt 0:00:03]} Rd1 {[%emt 0:00:03]} 100. Rh7+ {[%emt 0:00:02]} Kd8 {[%emt 0:00:01]} 101. Ra7 {[%emt 0:00:01]} a4 {[%emt 0:00:01]} 102. Rxa4 {[%emt 0:00:02]} Kd7 {[%emt 0:00:01]} 103. Ra7+ {[%emt 0:00:02]} Kd8 {[%emt 0:00:01]} 104. Ke5 {[%emt 0:00:02]} Rd2 {[%emt 0:00:01]} 105. Bc5 {[%emt 0:00:03]} Rd7 {[%emt 0:00:02]} 106. Ra6 {[%emt 0:00:04]} Rd1 {[%emt 0:00:04]} 107. Bd6 {[%emt 0:00:03]} Kd7 {[%emt 0:00:02]} 108. Ra7+ {[%emt 0:00:01]} Kc6 {[%emt 0:00:02]} 109. Rc7+ {[%emt 0:00:01]} Kb5 {[%emt 0:00:01]} 110. Rc2 {[%emt 0:00:00]} Rh1 {[%emt 0:00:03]} 111. Kd5 {[%emt 0:00:01]} Rh5+ {[%emt 0:00:01]} 112. Be5 {[%emt 0:00:01]} Rg5 {[%emt 0:00:03]} 113. Rb2+ {[%emt 0:00:01]} Ka5 {[%emt 0:00:02]} 114. Kd4 {[%emt 0:00:02]} Rh5 {[%emt 0:00:04]} 115. Rb1 {[%emt 0:00:04]} Rg5 {[%emt 0:00:02]} 116. Bc7+ {[%emt 0:00:08]} Ka4 {[%emt 0:00:03]} 117. Bd6 {[%emt 0:00:01]} Rg4+ {[%emt 0:00:03]} 118. Kc3 {[%emt 0:00:03]} Ka5 {[%emt 0:00:02]} 119. Be5 {[%emt 0:00:02]} Rg5 {[%emt 0:00:05]} 120. Bd4 {[%emt 0:00:01]} Ka6 $2 {[%emt 0:00:05][%mdl 8192] [#]} (120... Rg8 $16) 121. Kc4 $2 {[%emt 0:00:03]} (121. Rb6+ $1 {mates} Ka5 122. Kc4 Ka4 123. Rb8 Rh5 124. Rb2 Rh3 125. Bf2 Rf3 126. Bc5) 121... Rg6 $16 {[%emt 0:00:02]} 122. Kd5 {[%emt 0:00:03]} Rg5+ {[%emt 0:00:02]} 123. Be5 {[%emt 0:00:01]} Ka5 {[%emt 0:00:02]} 124. Rb8 {[%emt 0:00:03]} Rh5 {[%emt 0:00:02]} 125. Kd6 {[%emt 0:00:03]} Ka4 {[%emt 0:00:04]} 126. Bd4 {[%emt 0:00:01]} Rb5 {[%emt 0:00:03]} 127. Ra8+ {[%emt 0:00:02]} Kb4 {[%emt 0:00:01]} 128. Ra1 {[%emt 0:00:02]} Kc4 {[%emt 0:00:02]} 129. Be5 {[%emt 0:00:00]} Rb6+ {[%emt 0:00:02]} 130. Ke7 {[%emt 0:00:02]} Kd5 {[%emt 0:00:02]} 131. Ra5+ {[%emt 0:00:02]} Ke4 {[%emt 0:00:03]} 132. Bd6 {[%emt 0:00:01]} Rb1 {[%emt 0:00:05]} 133. Ke6 {[%emt 0:00:01]} Rb3 {[%emt 0:00:01]} 134. Ra4+ {[%emt 0:00:02]} Ke3 {[%emt 0:00:04]} 135. Rh4 {[%emt 0:00:01]} Kd3 {[%emt 0:00:02]} (135... Rb1 $11) 136. Kd5 {[%emt 0:00:01]} 1-0

[Event "CCT Airthings Masters Play-In 2023"]
[Site "Online"]
[Date "2023.02.03"]
[Round "4"]
[White "adotand"]
[Black "vi_pranav"]
[Result "0-1"]
[ECO "A60"]
[WhiteElo "2386"]
[BlackElo "2553"]
[Annotator "TA"]
[PlyCount "180"]
[EventDate "2023.02.03"]
[EventType "swiss"]
[EventCountry "NET"]
[SourceTitle "playchess.com"]
[Source "ChessBase"]
[SourceQuality "1"]
[TimeControl "600+2"]

{[%evp 9,180,43,45,30,40,41,52,31,42,30,17,13,19,13,65,29,56,13,26,0,0,0,0,0,0,0,1,6,25,0,0,-4,0,0,0,0,0,0,0,0,0,-75,0,0,0,0,0,0,0,0,0,0,0,0,0,0,0,-68,-71,-72,-52,-68,-24,-12,-26,-36,0,0,0,0,0,0,0,0,0,0,0,0,0,0,0,0,0,0,0,0,0,0,11,0,0,0,6,0,6,-53,-53,-53,-53,-53,-53,-76,-74,-83,-83,-422,-441,-441,-441,-433,-433,-420,-420,-420,-254,-280,-53,-53,-53,-53,-53,-53,0,0,0,0,0,0,0,0,0,-8,-8,-8,-8,0,0,0,0,-95,-95,-125,-125,-119,-125,-29965,-118,-450,-397,-4789,-4603,-2182,-1918,-1447,-768,-9769,-8388,-4133,-1745,-29976,-29977,-29977,-29978,-29984,-29985,-29986,-29987,-29987,-29988,-29988,-29989,-29989,-29990]} 1. d4 {[%emt 0:00:03]} Nf6 {[%emt 0:00:10]} 2. c4 {[%emt 0:00:01]} e6 {[%emt 0:00:00]} 3. g3 {[%emt 0:00:01]} c5 {[%emt 0:00:05]} 4. d5 {[%emt 0:00:00]} exd5 {[%emt 0:00:01]} 5. cxd5 {[%emt 0:00:01]} b5 {[%emt 0:00:00] [#]} 6. e4 $1 {[%emt 0:00:01] A60: Modern Benoni: Early Divergences.} Nxe4 {[%emt 0:00:07]} 7. Bg2 {[%emt 0:00:01]} Nd6 {[%emt 0:00:02]} 8. Bf4 {[%emt 0:00:01][%mdl 1024] White has compensation. White is slightly better.} Be7 {[%emt 0:00:03]} 9. Nf3 {[%emt 0:00:02]} O-O {[%emt 0:00:01]} 10. O-O {[%emt 0:00:01]} Re8 $5 {[%emt 0:00:01][%mdl 4] Exploring less charted territory.} 11. Re1 {[%emt 0:00:27]} Bf8 {[%emt 0:00:03]} (11... Na6 $11) 12. Nc3 {[%emt 0:00:20]} b4 {[%emt 0:00:44]} 13. Na4 {[%emt 0:01:58]} Na6 {[%emt 0:00:02]} 14. Rc1 {[%emt 0:00:39] [#]} Bb7 $146 {[%emt 0:00:07]} ({Predecessor:} 14... Rxe1+ 15. Qxe1 Qa5 16. b3 Bb7 17. Ne5 Re8 18. Qd1 Qd8 19. Nxc5 Nxc5 20. Rxc5 g5 21. Bxg5 Qxg5 22. Nxd7 {0-1 Ivanisevic,I (2550)-Pranav,V (2481) Titled Tuesday intern op 24th May Late blitz 2022 (9)}) 15. Nxc5 {[%emt 0:00:23]} Nxc5 {[%emt 0:00:04]} 16. Rxc5 {[%emt 0:00:00]} Qb6 {[%emt 0:00:27]} 17. Rc1 {[%emt 0:00:15]} Rxe1+ {[%emt 0:00:03]} 18. Nxe1 {[%emt 0:00:06]} Re8 {[%emt 0:00:20]} 19. Nf3 {[%emt 0:00:19]} Ne4 {[%emt 0:01:01]} 20. Be3 {[%emt 0:00:31]} Bc5 {[%emt 0:00:04]} 21. Bxc5 {[%emt 0:00:06]} Nxc5 {[%emt 0:00:00]} 22. Qd4 {[%emt 0:00:27]} d6 {[%emt 0:00:04]} 23. Re1 {[%emt 0:00:04]} Rxe1+ {[%emt 0:00:17]} 24. Nxe1 {[%emt 0:00:01]} Qa5 {[%emt 0:00:01]} 25. Qf4 {[%emt 0:00:14] [#]} (25. h4 $11) 25... b3 {[%emt 0:00:10]} (25... Qxa2 $2 26. Qxd6 g6 27. Qxc5 $18) ({Black should try} 25... h6 $1 $17 {White must now prevent ...b3.} 26. Nf3 (26. Qxd6 $2 b3 $19 {[%mdl 64] Discovered Attack}) 26... Qxa2 27. Qxd6 Qxd5 28. Qb8+ Kh7) 26. Qe3 $11 {[%emt 0:00:45][%cal Re3e8]} Kf8 {[%emt 0:01:05] Wards off Qe8+} 27. axb3 {[%emt 0:00:02]} Ba6 {[%emt 0:00:02]} 28. h4 {[%emt 0:00:06]} Qa1 {[%emt 0:00:29]} 29. Kh2 {[%emt 0:00:07] b4 is the strong threat.} Qxb2 {[%emt 0:00:02]} 30. Qf4 {[%emt 0:00:16]} Ke7 {[%emt 0:00:52]} 31. b4 {[%emt 0:00:02]} Nd7 {[%emt 0:00:04] Active counter play!} 32. Qe3+ {[%emt 0:00:21]} Qe5 {[%emt 0:00:03]} 33. Nc2 {[%emt 0:00:35]} (33. Be4 $11 f5 34. Bxf5) 33... Qxe3 $15 {[%emt 0:00:07]} 34. Nxe3 {[%emt 0:00:00][%mdl 4096] Endgame KBN-KBN} g6 {[%emt 0:00:01] Inhibits Nf5+.} 35. g4 {[%emt 0:00:02]} Ne5 {[%emt 0:00:03] White should prevent ...Nd3.} 36. Kg3 {[%emt 0:00:11]} Nd3 {[%emt 0:00:03]} 37. Nc2 {[%emt 0:00:01]} Bc4 {[%emt 0:00:17]} (37... Bb5 $5 {[%cal Rb5a4]}) 38. Be4 {[%emt 0:00:12]} Nc1 {[%emt 0:00:35]} 39. Nd4 {[%emt 0:00:07]} a6 {[%emt 0:00:02]} 40. Kf3 {[%emt 0:00:04]} Na2 {[%emt 0:00:22]} 41. Nc6+ {[%emt 0:00:01]} Kd7 {[%emt 0:00:00]} 42. Ke3 $1 {[%emt 0:00:12]} Bb5 {[%emt 0:00:13]} 43. Kd4 {[%emt 0:00:05]} Nc1 {[%emt 0:00:21]} 44. Na7 {[%emt 0:00:15]} Be2 {[%emt 0:00:43]} 45. g5 {[%emt 0:00:03]} Bf1 {[%emt 0:00:26]} 46. Nc6 {[%emt 0:00:04]} Ne2+ {[%emt 0:00:04]} 47. Ke3 {[%emt 0:00:01]} Nc3 {[%emt 0:00:02]} 48. Bf3 {[%emt 0:00:01] Repels Nd1+} Bb5 {[%emt 0:00:21]} 49. Kd4 {[%emt 0:00:13]} Na2 {[%emt 0:00:02]} 50. Be4 {[%emt 0:00:29]} Nc1 {[%emt 0:00:06]} 51. Na7 {[%emt 0:00:07]} Bf1 {[%emt 0:00:03]} 52. Bf3 {[%emt 0:00:13]} ({White should play} 52. Kc3 $11) 52... Nd3 {[%emt 0:00:10]} 53. Nc6 {[%emt 0:00:04]} Nxf2 {[%emt 0:00:29]} 54. Ke3 {[%emt 0:00:08]} Nd3 {[%emt 0:00:03]} 55. Nb8+ {[%emt 0:00:05]} Kc8 {[%emt 0:00:08]} 56. Nxa6 {[%emt 0:00:02]} Ne5 {[%emt 0:00:11]} 57. Be2 {[%emt 0:00:13][%mdl 8192]} (57. b5 $17 {nothing else works.}) 57... Bxe2 $19 {[%emt 0:00:01]} 58. Kxe2 {[%emt 0:00:00] KN-KN} Kb7 {[%emt 0:00:00]} 59. b5 {[%emt 0:00:02]} Kb6 {[%emt 0:00:01]} 60. Ke3 {[%emt 0:00:03]} Kxb5 {[%emt 0:00:03]} 61. Nc7+ {[%emt 0:00:01]} Kc5 {[%emt 0:00:03] ...Kc4 would be deadly.} 62. Ke4 {[%emt 0:00:03] [#]} Nd7 $2 {[%emt 0:00:18]} (62... Ng4 $1 $19 {Strongly threatening ...Ne5.} 63. Na6+ Kc4) 63. Ne8 $15 {[%emt 0:00:01]} Nb6 $1 {[%emt 0:00:08]} 64. Nf6 {[%emt 0:00:02]} Kc4 {[%emt 0:00:00] And now ...Kc5 would win.} 65. Ne8 {[%emt 0:00:04]} Kc5 {[%emt 0:00:04]} ({Don't play} 65... Nxd5 66. Nxd6+ Kc5 67. Nxf7 $11) (65... Nc8 $1 $15 66. Nf6 Ne7) 66. Nf6 $11 {[%emt 0:00:01]} Na4 {[%emt 0:00:00] Hoping for ...Nc3+.} 67. Kd3 $1 {[%emt 0:00:10] Repels Nc3} Nb2+ {[%emt 0:00:05]} 68. Ke4 {[%emt 0:00:06]} Nd1 {[%emt 0:00:06]} 69. Kd3 {[%emt 0:00:02]} Nb2+ {[%emt 0:00:01]} 70. Ke4 {[%emt 0:00:05]} Nc4 {[%emt 0:00:01]} 71. Nxh7 {[%emt 0:00:14]} Nd2+ {[%emt 0:00:01]} (71... Ne5 $5 72. Nf6 $8 Kc4 $11) 72. Ke3 {[%emt 0:00:01]} Nb1 {[%emt 0:00:04][%cal Ob1c3]} 73. Nf6 {[%emt 0:00:09]} Nc3 {[%emt 0:00:01]} 74. Ng4 {[%emt 0:00:07]} (74. Kf3 $11) 74... Kxd5 $17 {[%emt 0:00:03] Black keeps a firm grip on the game.} ({Of course not} 74... Nxd5+ $6 75. Kf3 $11) 75. Nh6 {[%emt 0:00:05]} Ke6 {[%emt 0:00:02]} 76. Ng4 {[%emt 0:00:01]} Nd5+ {[%emt 0:00:01]} 77. Ke4 $2 {[%emt 0:00:00][%mdl 8192]} (77. Kf3 $17) 77... Ne7 $2 {[%emt 0:00:01]} (77... f5+ {mates} 78. gxf6 Nxf6+ 79. Kf3 Nxg4 80. Ke4 Nf6+ 81. Kf4 d5 82. Kf3 d4 83. Ke2 Kf5 84. Kd3 Ke5 85. Kc4 Ke4 86. Kb4 d3 87. Kc3 Ke3 88. Kb3 d2 89. Kc2 Nd5 90. h5 gxh5 91. Kd1 Nc3+ 92. Kc2 d1=Q+ 93. Kxc3 Qa4 94. Kb2 Kd3 95. Kb1 Kc3 96. Kc1 Qc2#) 78. Kf4 $2 {[%emt 0:00:04][%mdl 8192]} (78. Ne3 $17 {is a better chance.}) 78... Nf5 $19 {[%emt 0:00:01]} 79. h5 $2 {[%emt 0:00:06]} (79. Nf6 Nxh4 80. Kg4) 79... gxh5 {[%emt 0:00:02]} 80. Nf6 {[%emt 0:00:01]} h4 {[%emt 0:00:01]} 81. Kg4 {[%emt 0:00:00]} d5 {[%emt 0:00:03][%cal Bd6d5,Bd5d4][%mdl 32] aiming for ...Ke5.} 82. Nh5 {[%emt 0:00:02]} d4 {[%emt 0:00:03] Threatens to win with ...Ke5.} 83. Nf4+ {[%emt 0:00:00]} Ke5 {[%emt 0:00:00] ( -> ...Ke4)} 84. Nd3+ {[%emt 0:00:01]} Ke4 {[%emt 0:00:02] Black mates.} 85. Nc5+ {[%emt 0:00:02]} Ke3 {[%emt 0:00:04]} 86. Kxf5 {[%emt 0:00:03]} h3 {[%emt 0:00:01]} 87. Kf6 {[%emt 0:00:05]} h2 {[%emt 0:00:01]} 88. Kxf7 {[%emt 0:00:00]} h1=Q {[%emt 0:00:00]} ({Inferior is} 88... h1=R 89. g6 $11) 89. g6 {[%emt 0:00:00]} Qd5+ {[%emt 0:00:00]} 90. Ne6 {[%emt 0:00:01]} Qf5+ {[%emt 0:00:03] Weighted Error Value: White=0.17 (very precise) /Black=0.06 (flawless)} 0-1